[Event "Titled Tuesday Blitz May 10 Early 2022"]
[White "Wagner, Dennis"]
[Black "Shimanov, Aleksandr"]
[WhiteFideId "24650684"]
[BlackFideId "4198603"]
[WhiteElo "2355"]
[BlackElo "2605"]
[Result "0-1"]
[Round "07"]
[TimeControl "180+1"]
[Date "2022.05.10"]
[WhiteClock "0:00:03"]
[BlackClock "0:00:18"]

1. d4 {[%clk 0:03:00]}  d5 {[%clk 0:02:51]} 2. c4 {[%clk 0:03:01]}  c6 {[%clk 0:02:51]} 3. Nc3 {[%clk 0:03:00]}  Nf6 {[%clk 0:02:51]} 4. e3 {[%clk 0:03:01]}  a6 {[%clk 0:02:47]} 5. Nf3 {[%clk 0:02:58]}  b5 {[%clk 0:02:47]} 6. b3 {[%clk 0:02:58]}  Bf5 {[%clk 0:02:46]} 7. Be2 {[%clk 0:02:55]}  h6 {[%clk 0:02:45]} 8. O-O {[%clk 0:02:55]}  e6 {[%clk 0:02:45]} 9. a4 {[%clk 0:02:50]}  b4 {[%clk 0:02:45]} 10. Na2 {[%clk 0:02:50]}  a5 {[%clk 0:02:45]} 11. Bb2 {[%clk 0:02:49]}  Nbd7 {[%clk 0:02:43]} 12. Nc1 {[%clk 0:02:50]}  Bd6 {[%clk 0:02:40]} 13. Nd3 {[%clk 0:02:50]}  O-O {[%clk 0:02:39]} 14. Rc1 {[%clk 0:02:51]}  dxc4 {[%clk 0:02:13]} 15. Rxc4 {[%clk 0:02:50]}  Be4 {[%clk 0:02:07]} 16. Nfe5 {[%clk 0:02:42]}  Bd5 {[%clk 0:01:58]} 17. Rc1 {[%clk 0:02:35]}  Qb6 {[%clk 0:01:52]} 18. Nc4 {[%clk 0:01:59]}  Bxc4 {[%clk 0:01:49]} 19. Rxc4 {[%clk 0:02:00]}  Rac8 {[%clk 0:01:48]} 20. Qc2 {[%clk 0:02:00]}  Qb8 {[%clk 0:01:35]} 21. g3 {[%clk 0:01:38]}  Nb6 {[%clk 0:01:34]} 22. Rxc6 {[%clk 0:01:37]}  Rxc6 {[%clk 0:01:34]} 23. Qxc6 {[%clk 0:01:38]}  Rc8 {[%clk 0:01:35]} 24. Qb5 {[%clk 0:01:38]}  Rc2 {[%clk 0:01:33]} 25. Bd1 {[%clk 0:01:34]}  Rd2 {[%clk 0:01:29]} 26. Bc1 {[%clk 0:01:33]}  Ra2 {[%clk 0:01:29]} 27. Bf3 {[%clk 0:01:18]}  Nbd5 {[%clk 0:01:18]} 28. e4 {[%clk 0:01:09]}  Nc3 {[%clk 0:00:59]} 29. Qxb8+ {[%clk 0:00:33]}  Bxb8 {[%clk 0:00:59]} 30. Re1 {[%clk 0:00:32]}  Ba7 {[%clk 0:00:49]} 31. d5 {[%clk 0:00:27]}  Nd7 {[%clk 0:00:42]} 32. dxe6 {[%clk 0:00:25]}  fxe6 {[%clk 0:00:43]} 33. Bg4 {[%clk 0:00:25]}  Kf7 {[%clk 0:00:43]} 34. Be3 {[%clk 0:00:23]}  Bxe3 {[%clk 0:00:37]} 35. Rxe3 {[%clk 0:00:24]}  Ra1+ {[%clk 0:00:36]} 36. Kg2 {[%clk 0:00:23]}  Rb1 {[%clk 0:00:36]} 37. Rf3+ {[%clk 0:00:24]}  Ke7 {[%clk 0:00:36]} 38. e5 {[%clk 0:00:17]}  Rxb3 {[%clk 0:00:35]} 39. Bh5 {[%clk 0:00:17]}  Ra3 {[%clk 0:00:25]} 40. Rf7+ {[%clk 0:00:17]}  Kd8 {[%clk 0:00:26]} 41. Bg4 {[%clk 0:00:15]}  Nxa4 {[%clk 0:00:17]} 42. Nf4 {[%clk 0:00:08]}  Nxe5 {[%clk 0:00:15]} 43. Nxe6+ {[%clk 0:00:09]}  Ke8 {[%clk 0:00:16]} 44. Rxg7 {[%clk 0:00:06]}  Nxg4 {[%clk 0:00:16]} 45. Nc7+ {[%clk 0:00:04]}  Kd8 {[%clk 0:00:17]} 46. Ne6+ {[%clk 0:00:05]}  Kc8 {[%clk 0:00:17]} 47. Rxg4 {[%clk 0:00:04]}  b3 {[%clk 0:00:18]} 48. Rg7 {[%clk 0:00:03]}  b2 {[%clk 0:00:17]} 49. Rc7+ {[%clk 0:00:02]}  Kb8 {[%clk 0:00:17]} 50. Rd7 {[%clk 0:00:02]}  b1=Q {[%clk 0:00:17]} 51. Nd8 {[%clk 0:00:03]}  Qe4+ {[%clk 0:00:17]} 52. Kh3 {[%clk 0:00:03]}  Qf5+ {[%clk 0:00:17]} 53. Kh4 {[%clk 0:00:03]}  Qxd7 {[%clk 0:00:18]} 0-1


[Site "https://www.chess.com"]

[Event "Titled Tuesday Blitz May 10 Early 2022"]
[White "Xiong, Jeffery"]
[Black "Yilmaz, Mustafa"]
[WhiteFideId "2047640"]
[BlackFideId "6302718"]
[WhiteElo "2727"]
[BlackElo "2568"]
[Result "1/2-1/2"]
[Round "07"]
[TimeControl "180+1"]
[Date "2022.05.10"]
[WhiteClock "0:00:07"]
[BlackClock "0:00:14"]

1. e4 {[%clk 0:03:00]}  c5 {[%clk 0:02:59]} 2. Nf3 {[%clk 0:03:01]}  d6 {[%clk 0:03:00]} 3. Nc3 {[%clk 0:03:01]}  Nf6 {[%clk 0:02:59]} 4. d4 {[%clk 0:03:01]}  cxd4 {[%clk 0:03:00]} 5. Qxd4 {[%clk 0:03:02]}  Nc6 {[%clk 0:02:57]} 6. Qd3 {[%clk 0:03:02]}  g6 {[%clk 0:02:47]} 7. Nd5 {[%clk 0:03:02]}  Bg7 {[%clk 0:02:32]} 8. c3 {[%clk 0:03:02]}  O-O {[%clk 0:02:27]} 9. Bg5 {[%clk 0:03:03]}  Nxd5 {[%clk 0:02:24]} 10. exd5 {[%clk 0:03:03]}  Bf5 {[%clk 0:02:20]} 11. Qd2 {[%clk 0:03:02]}  Ne5 {[%clk 0:02:20]} 12. Nxe5 {[%clk 0:03:02]}  Bxe5 {[%clk 0:02:20]} 13. Be2 {[%clk 0:03:03]}  Bf6 {[%clk 0:02:13]} 14. Be3 {[%clk 0:03:01]}  a6 {[%clk 0:01:53]} 15. a4 {[%clk 0:03:01]}  b5 {[%clk 0:01:45]} 16. O-O {[%clk 0:02:41]}  Rb8 {[%clk 0:01:42]} 17. axb5 {[%clk 0:02:31]}  axb5 {[%clk 0:01:43]} 18. Ra7 {[%clk 0:02:31]}  Re8 {[%clk 0:01:28]} 19. Rfa1 {[%clk 0:02:29]}  e6 {[%clk 0:01:26]} 20. dxe6 {[%clk 0:02:23]}  Bxe6 {[%clk 0:01:27]} 21. Bf3 {[%clk 0:02:18]}  d5 {[%clk 0:01:24]} 22. h3 {[%clk 0:02:11]}  Re7 {[%clk 0:01:18]} 23. Rxe7 {[%clk 0:02:00]}  Qxe7 {[%clk 0:01:18]} 24. Ra7 {[%clk 0:01:58]}  Qd8 {[%clk 0:01:05]} 25. Bc5 {[%clk 0:01:41]}  Ra8 {[%clk 0:01:00]} 26. Rxa8 {[%clk 0:01:31]}  Qxa8 {[%clk 0:00:59]} 27. Qf4 {[%clk 0:01:32]}  Bg7 {[%clk 0:00:42]} 28. Kh2 {[%clk 0:01:32]}  h5 {[%clk 0:00:42]} 29. Be2 {[%clk 0:01:30]}  Qb7 {[%clk 0:00:33]} 30. Qd6 {[%clk 0:01:30]}  Kh7 {[%clk 0:00:31]} 31. Bd3 {[%clk 0:01:24]}  Bd7 {[%clk 0:00:21]} 32. Qe7 {[%clk 0:01:21]}  Kg8 {[%clk 0:00:20]} 33. Qd8+ {[%clk 0:01:16]}  Kh7 {[%clk 0:00:20]} 34. Qe7 {[%clk 0:01:16]}  Kg8 {[%clk 0:00:20]} 35. Bd6 {[%clk 0:01:17]}  Qc6 {[%clk 0:00:20]} 36. Be5 {[%clk 0:00:44]}  Be6 {[%clk 0:00:20]} 37. Qd8+ {[%clk 0:00:40]}  Kh7 {[%clk 0:00:19]} 38. Bxg7 {[%clk 0:00:41]}  Kxg7 {[%clk 0:00:20]} 39. Qb8 {[%clk 0:00:41]}  Bd7 {[%clk 0:00:18]} 40. Qe5+ {[%clk 0:00:41]}  Kf8 {[%clk 0:00:17]} 41. Be2 {[%clk 0:00:41]}  f6 {[%clk 0:00:17]} 42. Qb8+ {[%clk 0:00:39]}  Ke7 {[%clk 0:00:16]} 43. Qg8 {[%clk 0:00:38]}  Bf5 {[%clk 0:00:12]} 44. Bf3 {[%clk 0:00:37]}  Qd6+ {[%clk 0:00:12]} 45. Kg1 {[%clk 0:00:37]}  d4 {[%clk 0:00:13]} 46. Qg7+ {[%clk 0:00:36]}  Kd8 {[%clk 0:00:13]} 47. cxd4 {[%clk 0:00:34]}  Qxd4 {[%clk 0:00:14]} 48. Qf8+ {[%clk 0:00:33]}  Kd7 {[%clk 0:00:14]} 49. Qf7+ {[%clk 0:00:34]}  Kd8 {[%clk 0:00:14]} 50. Qf8+ {[%clk 0:00:22]}  Kd7 {[%clk 0:00:14]} 51. b4 {[%clk 0:00:23]}  Qa1+ {[%clk 0:00:13]} 52. Kh2 {[%clk 0:00:23]}  Qe5+ {[%clk 0:00:14]} 53. g3 {[%clk 0:00:24]}  Qd4 {[%clk 0:00:14]} 54. Qf7+ {[%clk 0:00:16]}  Kd8 {[%clk 0:00:14]} 55. Qg8+ {[%clk 0:00:16]}  Ke7 {[%clk 0:00:13]} 56. Qg7+ {[%clk 0:00:16]}  Kd8 {[%clk 0:00:13]} 57. Qf8+ {[%clk 0:00:17]}  Kd7 {[%clk 0:00:13]} 58. Kg1 {[%clk 0:00:14]}  Qa1+ {[%clk 0:00:13]} 59. Kg2 {[%clk 0:00:15]}  Qd4 {[%clk 0:00:13]} 60. Qf7+ {[%clk 0:00:15]}  Kd8 {[%clk 0:00:14]} 61. Qf8+ {[%clk 0:00:16]}  Kd7 {[%clk 0:00:14]} 62. Qg7+ {[%clk 0:00:09]}  Kd8 {[%clk 0:00:14]} 63. Qg8+ {[%clk 0:00:09]}  Ke7 {[%clk 0:00:14]} 64. Qg7+ {[%clk 0:00:08]}  Kd8 {[%clk 0:00:14]} 65. Qf8+ {[%clk 0:00:07]}  Kd7 {[%clk 0:00:14]} 1/2-1/2


[Site "https://www.chess.com"]

[Event "Titled Tuesday Blitz May 10 Early 2022"]
[White "Yurtseven, Melih"]
[Black "Cunha, Lucas Aguiar"]
[WhiteFideId "6312160"]
[BlackFideId "2125404"]
[WhiteElo "2160"]
[BlackElo "2361"]
[Result "1-0"]
[Round "07"]
[TimeControl "180+1"]
[Date "2022.05.11"]
[WhiteClock "0:02:33"]
[BlackClock "0:02:25"]

1. d4 {[%clk 0:02:59]}  Nf6 {[%clk 0:02:59]} 2. Nf3 {[%clk 0:02:56]}  c5 {[%clk 0:02:57]} 3. e3 {[%clk 0:02:50]}  b6 {[%clk 0:02:56]} 4. c4 {[%clk 0:02:50]}  cxd4 {[%clk 0:02:53]} 5. exd4 {[%clk 0:02:51]}  d5 {[%clk 0:02:49]} 6. Nc3 {[%clk 0:02:52]}  dxc4 {[%clk 0:02:48]} 7. Bxc4 {[%clk 0:02:51]}  e6 {[%clk 0:02:49]} 8. O-O {[%clk 0:02:48]}  a6 {[%clk 0:02:48]} 9. d5 {[%clk 0:02:48]}  b5 {[%clk 0:02:47]} 10. Bb3 {[%clk 0:02:43]}  b4 {[%clk 0:02:46]} 11. dxe6 {[%clk 0:02:37]}  bxc3 {[%clk 0:02:27]} 12. exf7+ {[%clk 0:02:33]}  Ke7 {[%clk 0:02:25]} 13. Re1+ {[%clk 0:02:33]} 1-0


[Site "https://www.chess.com"]

[Event "Titled Tuesday Blitz May 10 Early 2022"]
[White "Zemlyanskii, Ivan"]
[Black "Bintang, Rasyid A. Hidayat"]
[WhiteFideId "24249971"]
[BlackFideId "7105355"]
[WhiteElo "1815"]
[BlackElo "2449"]
[Result "0-1"]
[Round "07"]
[TimeControl "180+1"]
[Date "2022.05.11"]
[WhiteClock "0:00:05"]
[BlackClock "0:00:09"]

1. d4 {[%clk 0:03:00]}  d5 {[%clk 0:03:00]} 2. c4 {[%clk 0:02:58]}  Nc6 {[%clk 0:03:00]} 3. Nc3 {[%clk 0:02:57]}  Nf6 {[%clk 0:02:59]} 4. Nf3 {[%clk 0:02:55]}  Bf5 {[%clk 0:02:59]} 5. Bf4 {[%clk 0:02:41]}  e6 {[%clk 0:02:58]} 6. e3 {[%clk 0:02:40]}  Bb4 {[%clk 0:02:58]} 7. Be2 {[%clk 0:02:35]}  Ne4 {[%clk 0:02:57]} 8. Qb3 {[%clk 0:02:31]}  O-O {[%clk 0:02:51]} 9. O-O {[%clk 0:02:29]}  Bxc3 {[%clk 0:02:49]} 10. bxc3 {[%clk 0:02:28]}  Na5 {[%clk 0:02:47]} 11. Qb4 {[%clk 0:02:24]}  c6 {[%clk 0:02:40]} 12. cxd5 {[%clk 0:02:12]}  exd5 {[%clk 0:02:41]} 13. Rac1 {[%clk 0:02:03]}  b5 {[%clk 0:02:38]} 14. Ne5 {[%clk 0:02:01]}  f6 {[%clk 0:02:28]} 15. Nd3 {[%clk 0:01:54]}  Nc4 {[%clk 0:02:20]} 16. Rfd1 {[%clk 0:01:47]}  a5 {[%clk 0:02:12]} 17. Qb3 {[%clk 0:01:43]}  Ned2 {[%clk 0:02:05]} 18. Qc2 {[%clk 0:01:42]}  Ne4 {[%clk 0:01:58]} 19. Bf3 {[%clk 0:01:37]}  Re8 {[%clk 0:01:55]} 20. Qe2 {[%clk 0:01:34]}  a4 {[%clk 0:01:45]} 21. Bg3 {[%clk 0:01:30]}  Qa5 {[%clk 0:01:28]} 22. Bxe4 {[%clk 0:01:20]}  Bxe4 {[%clk 0:01:29]} 23. Nc5 {[%clk 0:01:19]}  Bg6 {[%clk 0:01:06]} 24. Qg4 {[%clk 0:01:14]}  Qd8 {[%clk 0:00:55]} 25. h4 {[%clk 0:01:09]}  Qc8 {[%clk 0:00:53]} 26. Qf3 {[%clk 0:01:00]}  Qf5 {[%clk 0:00:44]} 27. Qe2 {[%clk 0:00:57]}  Bh5 {[%clk 0:00:41]} 28. f3 {[%clk 0:00:46]}  Rxe3 {[%clk 0:00:41]} 29. Qf2 {[%clk 0:00:44]}  Rae8 {[%clk 0:00:38]} 30. Re1 {[%clk 0:00:42]}  Rxe1+ {[%clk 0:00:28]} 31. Rxe1 {[%clk 0:00:42]}  Qc8 {[%clk 0:00:20]} 32. Bh2 {[%clk 0:00:39]}  Rxe1+ {[%clk 0:00:19]} 33. Qxe1 {[%clk 0:00:39]}  Qe8 {[%clk 0:00:20]} 34. Qg3 {[%clk 0:00:33]}  Bg6 {[%clk 0:00:16]} 35. Kh1 {[%clk 0:00:30]}  Bb1 {[%clk 0:00:15]} 36. Qc7 {[%clk 0:00:25]}  h5 {[%clk 0:00:13]} 37. Bg3 {[%clk 0:00:22]}  Qg6 {[%clk 0:00:12]} 38. Kh2 {[%clk 0:00:20]}  Qe8 {[%clk 0:00:12]} 39. Qb7 {[%clk 0:00:16]}  Nd2 {[%clk 0:00:12]} 40. Bf2 {[%clk 0:00:13]}  Nf1+ {[%clk 0:00:11]} 41. Kg1 {[%clk 0:00:13]}  Nd2 {[%clk 0:00:11]} 42. Nd3 {[%clk 0:00:10]}  Bxd3 {[%clk 0:00:11]} 43. Qc7 {[%clk 0:00:09]}  Bc4 {[%clk 0:00:11]} 44. Kh2 {[%clk 0:00:07]}  Nb1 {[%clk 0:00:10]} 45. g4 {[%clk 0:00:07]}  hxg4 {[%clk 0:00:10]} 46. fxg4 {[%clk 0:00:05]}  Nxc3 {[%clk 0:00:10]} 47. h5 {[%clk 0:00:05]}  Qe2 {[%clk 0:00:09]} 0-1


[Site "https://www.chess.com"]

[Event "Titled Tuesday Blitz May 10 Early 2022"]
[White "Zhigalko, Sergei"]
[Black "Yuan, Qingyu"]
[WhiteFideId "13502956"]
[BlackFideId "8609772"]
[WhiteElo "2662"]
[BlackElo "2359"]
[Result "0-1"]
[Round "07"]
[TimeControl "180+1"]
[Date "2022.05.10"]
[WhiteClock "0:00:01"]
[BlackClock "0:00:01"]

1. e4 {[%clk 0:03:00]}  c6 {[%clk 0:03:00]} 2. d4 {[%clk 0:03:01]}  d5 {[%clk 0:03:01]} 3. e5 {[%clk 0:03:01]}  c5 {[%clk 0:03:01]} 4. Nf3 {[%clk 0:03:02]}  cxd4 {[%clk 0:03:01]} 5. Qxd4 {[%clk 0:03:02]}  Nc6 {[%clk 0:03:02]} 6. Qf4 {[%clk 0:02:59]}  e6 {[%clk 0:03:02]} 7. Bd3 {[%clk 0:02:59]}  Nb4 {[%clk 0:03:00]} 8. O-O {[%clk 0:02:59]}  Nxd3 {[%clk 0:03:00]} 9. cxd3 {[%clk 0:02:58]}  Ne7 {[%clk 0:03:01]} 10. Nc3 {[%clk 0:02:57]}  Ng6 {[%clk 0:02:50]} 11. Qg3 {[%clk 0:02:56]}  Be7 {[%clk 0:02:47]} 12. Ne2 {[%clk 0:02:42]}  O-O {[%clk 0:02:24]} 13. Ned4 {[%clk 0:02:23]}  Bd7 {[%clk 0:02:18]} 14. Re1 {[%clk 0:02:23]}  Rc8 {[%clk 0:02:17]} 15. Bd2 {[%clk 0:02:21]}  Qb6 {[%clk 0:02:11]} 16. Bc3 {[%clk 0:02:07]}  Qa6 {[%clk 0:02:04]} 17. Red1 {[%clk 0:01:42]}  Bb5 {[%clk 0:01:50]} 18. Nxb5 {[%clk 0:01:28]}  Qxb5 {[%clk 0:01:50]} 19. h4 {[%clk 0:01:29]}  h5 {[%clk 0:01:29]} 20. a3 {[%clk 0:00:58]}  Qa4 {[%clk 0:01:08]} 21. d4 {[%clk 0:00:49]}  Qc2 {[%clk 0:01:07]} 22. Rd2 {[%clk 0:00:26]}  Qe4 {[%clk 0:01:01]} 23. Bb4 {[%clk 0:00:27]}  Bxb4 {[%clk 0:00:44]} 24. axb4 {[%clk 0:00:27]}  a6 {[%clk 0:00:45]} 25. Qg5 {[%clk 0:00:10]}  Qg4 {[%clk 0:00:38]} 26. b5 {[%clk 0:00:10]}  axb5 {[%clk 0:00:33]} 27. Ra5 {[%clk 0:00:10]}  Rc1+ {[%clk 0:00:23]} 28. Kh2 {[%clk 0:00:10]}  f6 {[%clk 0:00:18]} 29. exf6 {[%clk 0:00:07]}  Rxf6 {[%clk 0:00:13]} 30. Rxb5 {[%clk 0:00:01]}  Rc7 {[%clk 0:00:05]} 31. Rb6 {[%clk 0:00:01]}  Rcf7 {[%clk 0:00:02]} 32. Re2 {[%clk 0:00:01]}  Rxf3 {[%clk 0:00:01]} 0-1


[Site "https://www.chess.com"]

[Event "Titled Tuesday Blitz May 10 Early 2022"]
[White "Zlatin, Alexander"]
[Black "Bai, Adelard"]
[WhiteFideId "2810549"]
[BlackFideId "16301188"]
[WhiteElo "2228"]
[BlackElo "2120"]
[Result "0-1"]
[Round "07"]
[TimeControl "180+1"]
[Date "2022.05.11"]
[WhiteClock "0:01:33"]
[BlackClock "0:00:47"]

1. d4 {[%clk 0:03:00]}  Nf6 {[%clk 0:02:56]} 2. Nc3 {[%clk 0:03:01]}  d5 {[%clk 0:02:56]} 3. Bf4 {[%clk 0:03:02]}  c5 {[%clk 0:02:56]} 4. e3 {[%clk 0:03:02]}  a6 {[%clk 0:02:47]} 5. Nf3 {[%clk 0:03:01]}  Nc6 {[%clk 0:02:46]} 6. dxc5 {[%clk 0:02:59]}  e6 {[%clk 0:02:46]} 7. Bd3 {[%clk 0:02:58]}  Bxc5 {[%clk 0:02:46]} 8. O-O {[%clk 0:02:59]}  O-O {[%clk 0:02:46]} 9. e4 {[%clk 0:03:00]}  d4 {[%clk 0:02:38]} 10. e5 {[%clk 0:02:59]}  dxc3 {[%clk 0:02:35]} 11. exf6 {[%clk 0:03:00]}  gxf6 {[%clk 0:02:07]} 12. bxc3 {[%clk 0:02:44]}  f5 {[%clk 0:02:07]} 13. Ne5 {[%clk 0:02:40]}  Nxe5 {[%clk 0:02:02]} 14. Bxe5 {[%clk 0:02:40]}  Bd6 {[%clk 0:01:59]} 15. Qe2 {[%clk 0:02:28]}  Qc7 {[%clk 0:01:45]} 16. f4 {[%clk 0:02:25]}  Bxe5 {[%clk 0:01:29]} 17. fxe5 {[%clk 0:02:26]}  Qxc3 {[%clk 0:01:28]} 18. Rf3 {[%clk 0:02:20]}  Qxa1+ {[%clk 0:01:26]} 19. Kf2 {[%clk 0:02:17]}  Qd4+ {[%clk 0:01:25]} 20. Kf1 {[%clk 0:02:15]}  Kh8 {[%clk 0:01:23]} 21. Rh3 {[%clk 0:02:15]}  Qf4+ {[%clk 0:01:19]} 22. Ke1 {[%clk 0:02:11]}  Rg8 {[%clk 0:01:10]} 23. g3 {[%clk 0:02:08]}  Qc1+ {[%clk 0:01:09]} 24. Kf2 {[%clk 0:02:09]}  b5 {[%clk 0:01:01]} 25. Bxf5 {[%clk 0:01:47]}  exf5 {[%clk 0:00:52]} 26. e6 {[%clk 0:01:39]}  Bxe6 {[%clk 0:00:47]} 27. Qe5+ {[%clk 0:01:33]}  Rg7 {[%clk 0:00:46]} 28. Qxg7+ {[%clk 0:01:33]}  Kxg7 {[%clk 0:00:47]} 0-1


[Site "https://www.chess.com"]

[Event "Titled Tuesday Blitz May 10 Early 2022"]
[White "Golubova, Anna"]
[Black "Iljin, Timofey"]
[WhiteFideId "24173606"]
[BlackFideId "14110180"]
[WhiteElo "2083"]
[BlackElo "2404"]
[Result "0-1"]
[Round "08"]
[TimeControl "180+1"]
[Date "2022.05.11"]
[WhiteClock "0:00:20"]
[BlackClock "0:01:59"]

1. d4 {[%clk 0:03:00]}  d5 {[%clk 0:02:35]} 2. Bf4 {[%clk 0:03:00]}  c5 {[%clk 0:02:34]} 3. e3 {[%clk 0:03:00]}  Nc6 {[%clk 0:02:35]} 4. c3 {[%clk 0:03:00]}  Nf6 {[%clk 0:02:36]} 5. Nd2 {[%clk 0:03:00]}  Bf5 {[%clk 0:02:34]} 6. Ngf3 {[%clk 0:02:48]}  e6 {[%clk 0:02:33]} 7. Qb3 {[%clk 0:02:48]}  Qc8 {[%clk 0:02:34]} 8. Be2 {[%clk 0:02:13]}  Be7 {[%clk 0:02:33]} 9. O-O {[%clk 0:02:13]}  h6 {[%clk 0:02:33]} 10. h3 {[%clk 0:02:13]}  c4 {[%clk 0:02:32]} 11. Qd1 {[%clk 0:02:12]}  b5 {[%clk 0:02:33]} 12. Ne5 {[%clk 0:02:09]}  O-O {[%clk 0:02:32]} 13. Qc1 {[%clk 0:02:00]}  b4 {[%clk 0:02:29]} 14. Bd1 {[%clk 0:01:58]}  a5 {[%clk 0:02:23]} 15. Bc2 {[%clk 0:01:56]}  Bxc2 {[%clk 0:02:24]} 16. Qxc2 {[%clk 0:01:57]}  a4 {[%clk 0:02:25]} 17. a3 {[%clk 0:01:55]}  bxa3 {[%clk 0:02:22]} 18. bxa3 {[%clk 0:01:55]}  Nxe5 {[%clk 0:02:23]} 19. Bxe5 {[%clk 0:01:52]}  Nd7 {[%clk 0:02:23]} 20. Bg3 {[%clk 0:01:49]}  Qc6 {[%clk 0:02:23]} 21. e4 {[%clk 0:01:48]}  Bd6 {[%clk 0:02:22]} 22. exd5 {[%clk 0:01:45]}  exd5 {[%clk 0:02:23]} 23. Bxd6 {[%clk 0:01:43]}  Qxd6 {[%clk 0:02:24]} 24. Rfe1 {[%clk 0:01:40]}  Nf6 {[%clk 0:02:16]} 25. Rab1 {[%clk 0:01:38]}  Qxa3 {[%clk 0:02:15]} 26. Ra1 {[%clk 0:01:33]}  Qd6 {[%clk 0:02:15]} 27. Rxa4 {[%clk 0:01:32]}  Rxa4 {[%clk 0:02:16]} 28. Qxa4 {[%clk 0:01:33]}  Rb8 {[%clk 0:02:16]} 29. g3 {[%clk 0:01:06]}  Rb2 {[%clk 0:02:11]} 30. Rd1 {[%clk 0:00:47]}  Qe6 {[%clk 0:02:06]} 31. Qa3 {[%clk 0:00:33]}  Rxd2 {[%clk 0:02:04]} 32. Rxd2 {[%clk 0:00:27]}  Qe1+ {[%clk 0:02:04]} 33. Kg2 {[%clk 0:00:27]}  Qxd2 {[%clk 0:02:05]} 34. Qa8+ {[%clk 0:00:25]}  Kh7 {[%clk 0:02:04]} 35. Qc8 {[%clk 0:00:25]}  Qd3 {[%clk 0:02:01]} 36. Qc7 {[%clk 0:00:20]}  Qxc3 {[%clk 0:01:58]} 37. Qxf7 {[%clk 0:00:20]}  Qxd4 {[%clk 0:01:58]} 38. Qe6 {[%clk 0:00:19]}  Qe4+ {[%clk 0:01:58]} 39. Qxe4+ {[%clk 0:00:20]}  Nxe4 {[%clk 0:01:59]} 0-1


[Site "https://www.chess.com"]

[Event "Titled Tuesday Blitz May 10 Early 2022"]
[White "Ajay Krishna, S"]
[Black "Kozak, Antoni"]
[WhiteFideId "5096430"]
[BlackFideId "21832030"]
[WhiteElo "2247"]
[BlackElo "2322"]
[Result "0-1"]
[Round "08"]
[TimeControl "180+1"]
[Date "2022.05.11"]
[WhiteClock "0:00:39"]
[BlackClock "0:00:13"]

1. d4 {[%clk 0:03:00]}  f5 {[%clk 0:02:58]} 2. c4 {[%clk 0:03:00]}  Nf6 {[%clk 0:02:58]} 3. Nf3 {[%clk 0:03:00]}  g6 {[%clk 0:02:58]} 4. g3 {[%clk 0:03:00]}  Bg7 {[%clk 0:02:58]} 5. Bg2 {[%clk 0:03:01]}  O-O {[%clk 0:02:59]} 6. O-O {[%clk 0:03:01]}  d6 {[%clk 0:02:57]} 7. Nc3 {[%clk 0:03:01]}  c6 {[%clk 0:02:56]} 8. Bg5 {[%clk 0:02:54]}  h6 {[%clk 0:02:44]} 9. Bxf6 {[%clk 0:02:54]}  Bxf6 {[%clk 0:02:45]} 10. e4 {[%clk 0:02:54]}  Bg7 {[%clk 0:02:45]} 11. Qe2 {[%clk 0:02:50]}  f4 {[%clk 0:02:39]} 12. c5 {[%clk 0:02:39]}  Na6 {[%clk 0:02:31]} 13. Rad1 {[%clk 0:02:27]}  dxc5 {[%clk 0:02:22]} 14. dxc5 {[%clk 0:02:27]}  Qe8 {[%clk 0:02:23]} 15. Nd4 {[%clk 0:02:17]}  e5 {[%clk 0:02:13]} 16. Qc4+ {[%clk 0:02:11]}  Kh7 {[%clk 0:02:12]} 17. Nb3 {[%clk 0:02:00]}  Be6 {[%clk 0:02:05]} 18. Qe2 {[%clk 0:01:57]}  Qf7 {[%clk 0:02:05]} 19. Qc2 {[%clk 0:01:51]}  f3 {[%clk 0:01:53]} 20. Bh1 {[%clk 0:01:50]}  Bxb3 {[%clk 0:01:43]} 21. axb3 {[%clk 0:01:50]}  Nxc5 {[%clk 0:01:43]} 22. b4 {[%clk 0:01:50]}  Ne6 {[%clk 0:01:43]} 23. Rd3 {[%clk 0:01:40]}  Nd4 {[%clk 0:01:42]} 24. Qd1 {[%clk 0:01:40]}  b5 {[%clk 0:01:29]} 25. Re1 {[%clk 0:01:37]}  a5 {[%clk 0:01:20]} 26. bxa5 {[%clk 0:01:30]}  Rxa5 {[%clk 0:01:13]} 27. Ree3 {[%clk 0:01:29]}  Rfa8 {[%clk 0:01:02]} 28. Bxf3 {[%clk 0:01:16]}  Ra1 {[%clk 0:01:01]} 29. Nb1 {[%clk 0:01:16]}  Nxf3+ {[%clk 0:00:58]} 30. Rxf3 {[%clk 0:01:15]}  Qa2 {[%clk 0:00:57]} 31. Kg2 {[%clk 0:01:15]}  Rxb1 {[%clk 0:00:56]} 32. Qc2 {[%clk 0:01:13]}  Ra7 {[%clk 0:00:45]} 33. Rd8 {[%clk 0:01:07]}  Qxb2 {[%clk 0:00:21]} 34. Qxc6 {[%clk 0:01:03]}  Qc1 {[%clk 0:00:21]} 35. Qxc1 {[%clk 0:00:57]}  Rxc1 {[%clk 0:00:21]} 36. Rb8 {[%clk 0:00:57]}  Rb1 {[%clk 0:00:20]} 37. Rd3 {[%clk 0:00:54]}  b4 {[%clk 0:00:19]} 38. Rd5 {[%clk 0:00:54]}  Rf7 {[%clk 0:00:17]} 39. Rdb5 {[%clk 0:00:49]}  Bf8 {[%clk 0:00:15]} 40. Rxe5 {[%clk 0:00:45]}  Bd6 {[%clk 0:00:15]} 41. Rxb4 {[%clk 0:00:37]}  Rxb4 {[%clk 0:00:14]} 42. Rd5 {[%clk 0:00:37]}  Bf8 {[%clk 0:00:12]} 43. f4 {[%clk 0:00:37]}  Rxe4 {[%clk 0:00:12]} 44. Kf3 {[%clk 0:00:38]}  Rfe7 {[%clk 0:00:12]} 45. h4 {[%clk 0:00:39]}  Re1 {[%clk 0:00:12]} 46. h5 {[%clk 0:00:38]}  gxh5 {[%clk 0:00:12]} 47. Rxh5 {[%clk 0:00:38]}  R1e3+ {[%clk 0:00:12]} 48. Kg4 {[%clk 0:00:39]}  Rg7+ {[%clk 0:00:11]} 49. Kf5 {[%clk 0:00:39]}  Rexg3 {[%clk 0:00:11]} 50. Kf6 {[%clk 0:00:39]}  Be7+ {[%clk 0:00:11]} 51. Ke6 {[%clk 0:00:38]}  Re3+ {[%clk 0:00:11]} 52. Kf5 {[%clk 0:00:39]}  Reg3 {[%clk 0:00:09]} 53. Ke6 {[%clk 0:00:39]}  R3g6+ {[%clk 0:00:10]} 54. Kf5 {[%clk 0:00:39]}  Rf6+ {[%clk 0:00:10]} 55. Ke4 {[%clk 0:00:39]}  Rgf7 {[%clk 0:00:10]} 56. f5 {[%clk 0:00:39]}  Bf8 {[%clk 0:00:10]} 57. Ke5 {[%clk 0:00:39]}  Bd6+ {[%clk 0:00:11]} 58. Ke4 {[%clk 0:00:39]}  Ba3 {[%clk 0:00:11]} 59. Ke5 {[%clk 0:00:39]}  Bc1 {[%clk 0:00:11]} 60. Ke4 {[%clk 0:00:39]}  Bg5 {[%clk 0:00:12]} 61. Ke5 {[%clk 0:00:39]}  Rxf5+ {[%clk 0:00:12]} 62. Ke4 {[%clk 0:00:39]}  Ra5 {[%clk 0:00:12]} 63. Kd4 {[%clk 0:00:39]}  Be3+ {[%clk 0:00:12]} 64. Kd3 {[%clk 0:00:39]}  Rxh5 {[%clk 0:00:13]} 0-1


[Site "https://www.chess.com"]